[Event "87th Spanish Championship 2022"]
[Site "Linares"]
[Date "2022.08.15"]
[Round "6.6"]
[White "Lopez Martinez, Josep Manuel"]
[Black "Silva Lucena, Cristian"]
[Result "1/2-1/2"]
[ECO "E83"]
[WhiteElo "2486"]
[BlackElo "2212"]
[Annotator "TA"]
[PlyCount "190"]
[EventDate "2022.08.11"]
[EventType "swiss"]
[EventCountry "ESP"]
[SourceTitle "playchess.com"]
[Source "ChessBase"]
[SourceQuality "1"]
[TimeControl "5400+30"]

{[%evp 14,190,42,43,40,35,44,39,37,42,52,0,0,0,2,3,11,5,4,0,0,0,0,0,0,0,0,0,0,0,17,0,9,6,17,14,15,8,5,14,17,0,0,0,0,0,0,0,0,-2,0,0,0,-11,0,-10,0,0,0,-25,0,-31,0,-8,0,0,0,-4,-2,-3,0,-12,0,-7,0,-10,-7,-12,0,0,0,-33,0,-12,0,-38,0,-50,-63,-48,-58,-60,-44,-112,-107,-120,-118,-116,-115,-140,-140,-147,-150,-148,-135,-135,-114,-129,-107,-92,-92,-92,-69,-105,-96,-134,-137,-127,-92,-92,-92,-92,-92,-93,-93,-93,-92,-92,-92,-92,-92,-92,-92,-92,-92,-92,-92,-92,-92,-92,-92,-92,-92,-92,-92,-92,-92,-92,-92,-92,-92,-92,0,-92,0,-92,0,-92,-92,-92,-92,-92,-92,-92,-92,-92,-9,-68,-68,-68,-68,-68,-68,-68,-68,-68,-68,-68,-68]} 1. d4 {[%emt 0:03:56]} Nf6 {[%emt 0:00:07]} 2. c4 {[%emt 0:00:11]} g6 {[%emt 0:00:05]} 3. Nc3 {[%emt 0:00:33]} Bg7 {[%emt 0:00:02]} 4. e4 {[%emt 0:00:12]} d6 {[%emt 0:00:04]} 5. f3 {[%emt 0:00:17]} O-O {[%emt 0:00:06]} 6. Nge2 {[%emt 0:00:10]} Nc6 {[%emt 0:00:03]} 7. Be3 {[%emt 0:00:38]} a6 {[%emt 0:00:05]} 8. Qd2 {[%emt 0:02:19]} Na5 {[%emt 0:00:14] E83: King's Indian: Sämisch Panno (6...Nc6): Lines without either Nge2 or Qd2.} 9. Nc1 {[%emt 0:01:36]} Nd7 {[%emt 0:00:05][%cal Bf6d7,Bd7c5,Bc5e6,Be6d4][%mdl 32]} 10. Nb3 {[%emt 0:01:15]} Nxb3 {[%emt 0:00:47] White is slightly better.} 11. axb3 {[%emt 0:00:08]} c5 {[%emt 0:00:34]} 12. Be2 {[%emt 0:01:39]} (12. d5 $14) 12... cxd4 $11 {[%emt 0:00:21]} 13. Bxd4 {[%emt 0:00:07]} Bxd4 {[%emt 0:00:17]} 14. Qxd4 {[%emt 0:00:07]} Nc5 {[%emt 0:00:03]} 15. Bd1 {[%emt 0:07:48]} e5 {[%emt 0:00:22]} 16. Qd2 {[%emt 0:00:20]} Ne6 {[%emt 0:03:33] [#]} 17. O-O $146 {[%emt 0:14:59]} ({Predecessor:} 17. h4 Rb8 18. h5 Nf4 19. g3 Ne6 20. Kf2 g5 21. h6 b5 22. cxb5 axb5 23. b4 {½-½ (55) Galperin,I (2204)-Zemlyanov,S (2355) ICCF email 2015}) 17... Nd4 {[%emt 0:02:52]} 18. Kh1 {[%emt 0:00:38]} Be6 {[%emt 0:04:37]} 19. Ne2 {[%emt 0:00:23]} Nc6 {[%emt 0:00:43]} 20. f4 {[%emt 0:00:58]} exf4 {[%emt 0:01:09]} 21. Nxf4 {[%emt 0:00:31]} Ne5 {[%emt 0:00:16]} 22. Qd4 {[%emt 0:09:30]} Qc7 {[%emt 0:01:34]} 23. Be2 {[%emt 0:00:55]} a5 {[%emt 0:01:26]} 24. Rad1 {[%emt 0:02:19]} Rad8 {[%emt 0:00:55]} 25. h3 {[%emt 0:00:41]} b6 {[%emt 0:05:29]} 26. Qc3 {[%emt 0:04:42]} Qc5 {[%emt 0:01:35]} 27. Nd5 {[%emt 0:01:03]} Bxd5 {[%emt 0:01:48]} 28. Rxd5 {[%emt 0:00:08]} Qc7 {[%emt 0:00:07]} 29. Rfd1 {[%emt 0:06:07]} Rfe8 {[%emt 0:00:41]} 30. Qe3 {[%emt 0:03:19]} Re6 {[%emt 0:02:35]} 31. Qd2 {[%emt 0:06:43]} Qe7 {[%emt 0:02:07]} 32. Qd4 {[%emt 0:08:18]} Qc7 {[%emt 0:00:47]} 33. Bf3 {[%emt 0:00:40]} Nc6 {[%emt 0:02:17]} 34. Qf2 {[%emt 0:00:37]} Ne5 {[%emt 0:00:13]} 35. Rb5 {[%emt 0:06:17]} Rb8 {[%emt 0:00:55]} 36. Qd4 {[%emt 0:00:39]} Nc6 {[%emt 0:00:48]} 37. Qf2 {[%emt 0:05:58]} Ne5 {[%emt 0:00:11]} 38. Be2 {[%emt 0:00:44]} h5 {[%emt 0:01:28]} 39. Qg3 {[%emt 0:00:19]} Kh7 {[%emt 0:00:27]} 40. Qf2 {[%emt 0:02:26]} Kg7 {[%emt 0:00:41]} 41. Rbd5 {[%emt 0:00:46]} Rd8 {[%emt 0:00:30]} 42. Qg3 {[%emt 0:02:36]} Kh7 {[%emt 0:00:04]} 43. Rf1 {[%emt 0:00:14]} Qe7 {[%emt 0:01:12]} 44. Qf2 {[%emt 0:01:06]} Rb8 {[%emt 0:00:29]} 45. Rb5 {[%emt 0:00:37]} Qc7 {[%emt 0:00:18]} 46. Rd1 {[%emt 0:01:06]} Kg7 {[%emt 0:01:17]} 47. Rd2 {[%emt 0:00:23]} Kh7 {[%emt 0:00:28]} (47... Nd7 {is interesting.} 48. Rd1 Nc5 49. Bf3 Qe7) 48. Qg3 {[%emt 0:01:56]} Rd8 {[%emt 0:00:08]} 49. Qc3 {[%emt 0:00:59]} Rb8 {[%emt 0:01:00]} 50. b4 {[%emt 0:01:10]} ({Better is} 50. Qg3 $11) 50... axb4 $15 {[%emt 0:00:31]} 51. Qxb4 {[%emt 0:00:25]} Nc6 {[%emt 0:00:32][%csl LRb4,LRe4]} 52. Qc3 {[%emt 0:02:58]} Rxe4 {[%emt 0:00:15] Threatens to win with ...Ra8.} 53. Rbd5 {[%emt 0:00:44]} (53. Qf6 $15) 53... Rbe8 $17 {[%emt 0:01:04]} 54. Bf1 {[%emt 0:00:03]} Rf4 {[%emt 0:01:09]} 55. Rd1 {[%emt 0:00:12]} Ne7 {[%emt 0:00:51]} 56. R5d4 {[%emt 0:01:07]} Rxd4 {[%emt 0:00:17]} 57. Qxd4 {[%emt 0:00:02]} Nf5 {[%emt 0:00:08]} 58. Qf2 {[%emt 0:00:27]} Qc5 {[%emt 0:00:20]} 59. Kg1 {[%emt 0:00:31]} Kg7 {[%emt 0:01:19]} 60. Rd5 {[%emt 0:00:28]} Qxf2+ {[%emt 0:01:44]} 61. Kxf2 {[%emt 0:00:01][%mdl 4096] Endgame [#] KRB-KRN} Re5 $1 {[%emt 0:00:10] Strongly threatening ...Rxd5.} 62. Rd3 {[%emt 0:00:49]} b5 {[%emt 0:00:36]} 63. cxb5 {[%emt 0:00:29]} Rxb5 {[%emt 0:00:02]} 64. Rd2 {[%emt 0:00:36]} Rb4 {[%emt 0:00:17]} 65. Bd3 {[%emt 0:00:53]} Kf6 {[%emt 0:00:30]} 66. Bxf5 {[%emt 0:00:17]} Kxf5 {[%emt 0:00:06]} ({But not} 66... gxf5 $6 67. Rxd6+ Kg5 68. Rd2 $11) 67. Rxd6 {[%emt 0:00:04]} Rxb2+ {[%emt 0:00:12] KR-KR} 68. Kg1 {[%emt 0:00:01]} h4 {[%emt 0:00:18]} 69. Rd4 {[%emt 0:00:09]} Kg5 {[%emt 0:00:17]} 70. Rg4+ {[%emt 0:00:04]} Kh5 {[%emt 0:00:06]} 71. Ra4 {[%emt 0:00:04]} f5 {[%emt 0:00:12]} 72. Ra6 {[%emt 0:00:19]} Rb3 {[%emt 0:00:09]} 73. Kf2 {[%emt 0:00:10]} Rg3 {[%emt 0:00:08]} 74. Rb6 {[%emt 0:00:24]} Kg5 {[%emt 0:00:19]} 75. Ra6 {[%emt 0:00:09]} Rb3 {[%emt 0:00:12]} 76. Ra4 {[%emt 0:00:05]} Rb2+ {[%emt 0:00:13]} 77. Kf3 {[%emt 0:00:03]} Rb1 {[%emt 0:00:06]} 78. Kf2 {[%emt 0:00:07]} Rb8 {[%emt 0:00:11]} 79. Kf3 {[%emt 0:00:11]} Re8 {[%emt 0:00:02]} 80. Rb4 {[%emt 0:00:10]} Re1 {[%emt 0:00:05]} 81. Ra4 {[%emt 0:00:18]} Rf1+ {[%emt 0:00:13]} 82. Ke3 {[%emt 0:00:22]} Rb1 {[%emt 0:00:12]} (82... Rc1 $17 83. Kf3 Rc5) 83. Kf3 {[%emt 0:00:11]} (83. Kf2 $1 $11) 83... Rb3+ {[%emt 0:00:02]} 84. Kf2 {[%emt 0:00:04]} Kh5 {[%emt 0:00:34]} ({Black should try} 84... Rc3 $17 85. Ra6 Rc5) 85. Ra5 {[%emt 0:00:31]} (85. Ra6 $11) 85... Rb4 {[%emt 0:00:15]} 86. Kf3 {[%emt 0:00:44]} Kg5 {[%emt 0:00:06]} 87. Ra6 {[%emt 0:00:16]} Rb3+ {[%emt 0:00:43]} 88. Kf2 {[%emt 0:00:03]} Rg3 {[%emt 0:00:11]} 89. Ra4 {[%emt 0:00:17]} f4 {[%emt 0:00:09]} (89... Rd3 $17 90. Ra6 Kh5) 90. Rb4 {[%emt 0:02:02]} ({White should play} 90. Ra5+ $11 Kh6 91. Ra4) 90... Re3 $15 {[%emt 0:00:48] Black is slightly better.} 91. Rb5+ {[%emt 0:00:28]} Kf6 {[%emt 0:00:09]} 92. Ra5 {[%emt 0:00:18]} Re5 {[%emt 0:00:28]} 93. Ra6+ {[%emt 0:00:14]} Kf5 {[%emt 0:00:05]} 94. Ra3 {[%emt 0:01:21]} g5 {[%emt 0:00:11]} 95. Kf3 {[%emt 0:00:36]} Rd5 {[%emt 0:00:52] And White is the lucky defender.  Weighted Error Value: White=0.09 (flawless) /Black=0.05 (flawless)} 1/2-1/2

[Event "87th Spanish Championship 2022"]
[Site "Linares"]
[Date "2022.08.15"]
[Round "6.7"]
[White "Domingo Nunez, Ruben"]
[Black "Asis Gargatagli, Hipolito"]
[Result "1-0"]
[ECO "A10"]
[WhiteElo "2361"]
[BlackElo "2514"]
[Annotator "TA"]
[PlyCount "61"]
[EventDate "2022.08.11"]
[EventType "swiss"]
[EventCountry "ESP"]
[SourceTitle "playchess.com"]
[Source "ChessBase"]
[SourceQuality "1"]
[TimeControl "5400+30"]

{[%evp 12,61,37,12,14,-21,0,-16,-23,-50,-62,-47,-55,-54,-51,-68,-25,-30,-44,-58,-38,-43,-44,-42,-45,-31,-14,-36,-40,-33,-33,-25,0,0,41,35,68,60,66,68,134,120,118,118,145,144,270,254,291,301,287,276]} 1. c4 {[%emt 0:03:28]} f5 {[%emt 0:00:16]} 2. g3 {[%emt 0:00:11]} Nf6 {[%emt 0:00:09]} 3. Bg2 {[%emt 0:00:11]} g6 {[%emt 0:00:07]} 4. Nc3 {[%emt 0:00:54]} Bg7 {[%emt 0:00:34]} 5. d4 {[%emt 0:01:02]} O-O {[%emt 0:01:09]} 6. Nh3 {[%emt 0:05:34]} d6 {[%emt 0:00:52][%cal Bd7d6,Bd6e5,Be5e4,Be4e3,Be3f2][%mdl 32]} 7. Nf4 {[%emt 0:01:35]} e6 {[%emt 0:00:44] A86: Dutch Defence: Leningrad System: Unusual lines and 5 Nh3.} 8. h4 {[%emt 0:03:01][%cal Bh2h4,Bh4h5][%mdl 32]} c6 {[%emt 0:02:31]} 9. h5 {[%emt 0:00:48]} e5 {[%emt 0:00:05] The position is equal.} 10. h6 {[%emt 0:14:39]} (10. hxg6 {feels hotter.} exf4 11. gxh7+ Kh8 12. Bxf4 Na6 13. e3) 10... Bh8 {[%emt 0:00:07]} 11. dxe5 {[%emt 0:00:02]} dxe5 {[%emt 0:00:04]} 12. Qxd8 {[%emt 0:00:04]} Rxd8 {[%emt 0:00:09] [#]} 13. Nh3 $146 {[%emt 0:00:01]} ({Predecessor:} 13. Nd3 e4 14. Nf4 Ng4 15. Bd2 Nxf2 16. Kxf2 Rxd2 17. Ke3 Rxb2 18. Rad1 Nd7 19. Nxe4 fxe4 {0-1 (30) Balaskas,P (2074)-Rychagov,A (2538) Paleochora 2010}) 13... Be6 {[%emt 0:02:57]} 14. b3 $1 {[%emt 0:00:12]} e4 {[%emt 0:00:18][%cal Of6d5] Hoping for ...Nd5!} 15. Bd2 {[%emt 0:00:38]} Ng4 {[%emt 0:17:20]} 16. O-O-O {[%emt 0:10:05]} Na6 {[%emt 0:08:02]} 17. f3 {[%emt 0:02:05]} e3 {[%emt 0:20:10]} 18. Be1 {[%emt 0:02:18]} Nf2 {[%emt 0:01:06]} (18... Nxh6 $2 19. Ng5 $18) 19. Nxf2 {[%emt 0:06:31]} exf2 {[%emt 0:00:07]} 20. Rxd8+ {[%emt 0:00:04]} Rxd8 {[%emt 0:00:00]} 21. Bd2 {[%emt 0:00:00]} Be5 {[%emt 0:18:36]} 22. f4 {[%emt 0:02:41]} Bd6 {[%emt 0:00:07]} (22... Bd4 $5 {[%cal Rd4c5]}) 23. Be3 $1 {[%emt 0:01:12][%csl LRa7,LRf2]} Bb4 {[%emt 0:07:06]} 24. Nd1 {[%emt 0:11:28]} Ba3+ {[%emt 0:01:07]} 25. Kb1 {[%emt 0:00:06]} Bc5 {[%emt 0:05:20]} ({Black should play} 25... Bf7 $14) 26. Bxc5 $16 {[%emt 0:01:16]} Nxc5 {[%emt 0:00:05]} 27. Kc2 {[%emt 0:04:35]} Na6 {[%emt 0:00:15]} 28. Kc3 {[%emt 0:00:39] Prevents Nb4.} ({Of course not} 28. Nxf2 $6 Nb4+ 29. Kc3 Nxa2+ 30. Kc2 Nb4+ 31. Kc3 Na2+ 32. Kc2 Nb4+ 33. Kc3 Na2+ $11) 28... b5 {[%emt 0:00:20]} (28... f1=R $16 29. Rxf1 Kf8) 29. Nxf2 $18 {[%emt 0:03:58] White has a decisive advantage.} bxc4 {[%emt 0:00:06]} 30. bxc4 {[%emt 0:00:05]} ({Stronger than} 30. Bxc6 cxb3 31. Bb5 Nc7 $15) 30... Nc5 {[%emt 0:00:03]} 31. Rd1 {[%emt 0:01:23] Weighted Error Value: White=0.05 (flawless) /Black=0.23 (precise)} ({Less strong is} 31. Bxc6 Rc8 $14) 1-0

[Event "87th Spanish Championship 2022"]
[Site "Linares"]
[Date "2022.08.15"]
[Round "6.8"]
[White "Fernandez Garcia, Jose Luis"]
[Black "Plazuelo Pascual, Juan"]
[Result "1/2-1/2"]
[ECO "B51"]
[WhiteElo "2362"]
[BlackElo "2448"]
[Annotator "TA"]
[PlyCount "62"]
[EventDate "2022.08.11"]
[EventType "swiss"]
[EventCountry "ESP"]
[SourceTitle "playchess.com"]
[Source "ChessBase"]
[SourceQuality "1"]
[TimeControl "5400+30"]

{[%evp 13,62,14,11,11,20,9,25,5,19,8,18,22,23,-14,-3,-9,0,0,13,-13,0,0,0,0,0,0,35,37,29,1,10,0,0,0,0,0,0,-6,2,7,13,0,0,0,0,0,0,-4,-7,-8,0]} 1. e4 {[%emt 0:02:39]} c5 {[%emt 0:00:06]} 2. Nf3 {[%emt 0:00:07]} d6 {[%emt 0:00:10]} 3. Bb5+ {[%emt 0:00:09]} Nd7 {[%emt 0:00:32]} 4. d4 {[%emt 0:00:07]} cxd4 {[%emt 0:00:17]} 5. Qxd4 {[%emt 0:00:20]} a6 {[%emt 0:00:29]} 6. Bxd7+ {[%emt 0:01:06]} Bxd7 {[%emt 0:00:10]} 7. Nc3 {[%emt 0:03:31]} e5 {[%emt 0:00:27]} 8. Qd3 {[%emt 0:00:14] B51: Sicilian: Moscow Variation (3 Bb5+) without 3...Bd7.} Rc8 {[%emt 0:00:04]} 9. O-O {[%emt 0:01:25]} h6 {[%emt 0:00:09]} 10. Re1 {[%emt 0:00:24] White has an edge.} Nf6 {[%emt 0:02:25]} 11. Nd2 {[%emt 0:01:19]} Qc7 {[%emt 0:01:08]} 12. Nf1 {[%emt 0:01:19]} Be6 {[%emt 0:02:56] [#]} 13. Qg3 $146 {[%emt 0:08:05]} ({Predecessor:} 13. Ne3 Be7 14. Rd1 O-O 15. a4 Bc4 16. Nxc4 Qxc4 17. a5 Qxd3 18. Rxd3 {½-½ (29) Grandelius,N (2659)-Duda,J (2755) Prague 2020}) 13... b5 {[%emt 0:09:23]} 14. a3 {[%emt 0:01:08]} Qc6 {[%emt 0:01:09]} 15. Bd2 {[%emt 0:04:59]} g6 {[%emt 0:09:27]} 16. h3 {[%emt 0:06:48]} Bg7 {[%emt 0:02:25]} 17. Qf3 {[%emt 0:01:08]} d5 {[%emt 0:03:34]} 18. exd5 {[%emt 0:06:03]} Nxd5 {[%emt 0:00:34]} 19. Nxd5 {[%emt 0:00:14]} Qxd5 {[%emt 0:14:51]} 20. Qxd5 {[%emt 0:01:03]} Bxd5 {[%emt 0:00:08]} 21. Bc3 {[%emt 0:00:24]} Be6 {[%emt 0:07:24] The position is equal.} 22. a4 {[%emt 0:01:49]} O-O {[%emt 0:03:56]} 23. axb5 {[%emt 0:02:12]} axb5 {[%emt 0:01:19]} 24. Ra5 {[%emt 0:01:12]} Bd7 {[%emt 0:01:28]} 25. Ra7 {[%emt 0:01:33]} Bf5 {[%emt 0:04:29]} 26. Ne3 {[%emt 0:01:57]} Be6 {[%emt 0:01:16]} 27. Ra5 {[%emt 0:14:16]} Rb8 {[%emt 0:01:47]} 28. Rd1 {[%emt 0:05:27]} Rfc8 {[%emt 0:06:38]} 29. Rd6 {[%emt 0:03:37]} Rb7 {[%emt 0:01:01]} 30. Rda6 {[%emt 0:01:36]} h5 {[%emt 0:04:32]} 31. g4 {[%emt 0:10:18]} hxg4 {[%emt 0:02:45] Weighted Error Value: White=0.07 (flawless) /Black=0.04 (flawless)} 1/2-1/2

[Event "87th Spanish Championship 2022"]
[Site "Linares"]
[Date "2022.08.15"]
[Round "6.9"]
[White "Garcia Ramos, Daniel"]
[Black "Medarde Santiago, Luis Marcos"]
[Result "1-0"]
[ECO "B90"]
[WhiteElo "2438"]
[BlackElo "2330"]
[Annotator "TA"]
[PlyCount "109"]
[EventDate "2022.08.11"]
[EventType "swiss"]
[EventCountry "ESP"]
[SourceTitle "playchess.com"]
[Source "ChessBase"]
[SourceQuality "1"]
[TimeControl "5400+30"]

{[%evp 21,109,11,11,12,0,-15,0,0,0,0,0,0,15,-14,0,0,0,0,20,16,61,46,43,40,43,43,46,38,61,64,107,98,104,106,105,95,164,127,143,0,0,0,0,0,250,254,591,544,1391,1374,774,413,1315,1027,1293,586,1284,547,1505,1456,1241,1259,1893,1470,29962,29964,7118,2128,7068,7068,29983,29984,29986,29987,29987,29988,29988,29984,29991,29992,29992,29993,29993,29994,29994,29995,29995,29996,29996,29997]} 1. e4 {[%emt 0:00:01]} c5 {[%emt 0:03:16]} 2. Nf3 {[%emt 0:00:06][%cal Bg1f3,Bf3d4,Bd4b3][%mdl 32]} d6 {[%emt 0:00:05]} 3. d4 {[%emt 0:00:09]} cxd4 {[%emt 0:00:07]} 4. Nxd4 {[%emt 0:00:07]} Nf6 {[%emt 0:00:29]} 5. Nc3 {[%emt 0:00:14]} a6 {[%emt 0:00:14]} 6. f3 {[%emt 0:00:09]} e5 {[%emt 0:00:05]} 7. Nb3 {[%emt 0:00:04]} Be7 {[%emt 0:00:16]} 8. Be3 {[%emt 0:00:07]} Be6 {[%emt 0:00:06]} 9. Qd2 {[%emt 0:00:11]} h5 {[%emt 0:00:25]} 10. O-O-O {[%emt 0:00:12]} Nbd7 {[%emt 0:00:43]} 11. Kb1 {[%emt 0:00:40]} Rc8 {[%emt 0:06:24] is recently more successful than 11...b5.} 12. a3 $1 {[%emt 0:03:22] B90: Sicilian Najdorf: Unusual White 6th moves, 6 Be3 Ng4 and 6 Be3 e5.} b5 {[%emt 0:09:02]} 13. h4 {[%emt 0:04:02]} O-O {[%emt 0:11:11]} 14. Bg5 {[%emt 0:00:16] The position is equal.} Re8 {[%emt 0:04:23]} 15. Be2 {[%emt 0:07:45]} Qb6 {[%emt 0:15:54] [#]} 16. g3 $146 {[%emt 0:23:28][%cal Bg2g3,Bg3g4,Bg4g5][%mdl 32]} ({Predecessor:} 16. Rhg1 Bf8 17. Nc1 Rc7 18. N1a2 Rec8 19. Rc1 Qb7 20. Rgd1 Rc5 21. Be3 R5c7 22. Bg5 {0-1 (36) Inarkiev,E (2693)-Vidit,S (2707) Danzhou 2019}) 16... Nc5 {[%emt 0:13:07]} 17. Bxf6 {[%emt 0:43:56]} Nxb3 {[%emt 0:01:53]} 18. cxb3 {[%emt 0:00:05]} Bxf6 {[%emt 0:00:34]} 19. b4 {[%emt 0:01:36]} Red8 {[%emt 0:00:54]} 20. g4 {[%emt 0:00:40]} Bb3 {[%emt 0:07:32]} 21. g5 {[%emt 0:02:10]} Be7 {[%emt 0:00:04]} (21... Bxd1 $2 22. gxf6 Bc2+ 23. Qxc2 $18) 22. Nd5 {[%emt 0:03:32]} Bxd5 {[%emt 0:01:06]} 23. Qxd5 {[%emt 0:00:01] Black must now prevent g6.} g6 {[%emt 0:00:01]} 24. Bd3 {[%emt 0:03:30][%cal Be2d3,Bd3c2,Bc2b3][%mdl 32]} Rc7 {[%emt 0:04:50]} 25. Bc2 {[%emt 0:00:41]} a5 {[%emt 0:06:00]} 26. Bb3 {[%emt 0:00:24]} Bf8 {[%emt 0:01:37]} 27. bxa5 {[%emt 0:01:10]} Qxa5 {[%emt 0:00:05]} 28. Rc1 {[%emt 0:00:23]} Rdc8 {[%emt 0:02:02] [#]} (28... Rdd7 $16) 29. Rc6 $3 $40 {[%emt 0:00:33][%mdl 640] And now Rhc1 would win. White is out for blood.} Qa7 {[%emt 0:07:26]} 30. Rhc1 {[%emt 0:00:14]} ({White has to play} 30. Rxc7 $16 Rxc7 31. Qxb5) 30... Rxc6 $11 31. Rxc6 {[%emt 0:00:01]} Rxc6 {[%emt 0:02:02]} 32. Qxc6 {[%emt 0:00:01][%mdl 4096] Endgame KQB-KQB} Qe3 $2 {[%emt 0:04:04] White leaves nothing to chance now.} (32... Qf2 $11) 33. Qxb5 $18 {[%emt 0:00:22] [#] Hoping for Qb7. Active counter play!} d5 $2 {[%emt 0:00:25]} (33... Qc5 {is tougher.} 34. Qd7 d5 35. Bxd5 Qe7) 34. Qxd5 {[%emt 0:02:00]} Qxf3 {[%emt 0:00:02]} 35. Ka2 {[%emt 0:00:07]} Qf2 {[%emt 0:00:35]} 36. a4 {[%emt 0:00:41]} Bc5 {[%emt 0:00:20]} (36... Qa7 $142 37. Qxe5 Bc5 38. Qe8+ Kg7) 37. Qb7 {[%emt 0:03:21]} Kf8 {[%emt 0:01:03]} 38. Qb8+ {[%emt 0:00:29]} (38. a5 $142 Kg7 39. Bc4) 38... Ke7 {[%emt 0:00:28]} 39. Qxe5+ {[%emt 0:00:09]} (39. a5 $142 {White threatens Ba4 and mate.} Bd6 40. Qb7+ Kf8 41. a6) 39... Kf8 {[%emt 0:00:38]} 40. Qb8+ {[%emt 0:00:52]} Kg7 {[%emt 0:00:10]} 41. Qb7 {[%emt 0:00:24]} Bd4 {[%emt 0:00:26]} 42. Bd5 {[%emt 0:00:06] a5 is the strong threat.} Bb6 {[%emt 0:00:54]} 43. e5 {[%emt 0:00:30]} Qf4 {[%emt 0:00:22]} 44. Bb3 {[%emt 0:00:58]} Bd4 {[%emt 0:00:38]} 45. e6 {[%emt 0:02:03][%cal Re6f7]} Bxb2 {[%emt 0:00:29]} 46. Kxb2 {[%emt 0:00:32] White mates.} Qd2+ {[%emt 0:00:15]} 47. Bc2 {[%emt 0:00:17]} Qd4+ {[%emt 0:00:06]} 48. Ka2 {[%emt 0:00:06]} Qc4+ {[%emt 0:00:30]} 49. Qb3 {[%emt 0:00:09]} Qxh4 {[%emt 0:00:12]} 50. Qc3+ {[%emt 0:00:06]} Kf8 {[%emt 0:00:37]} 51. Qh8+ {[%emt 0:00:10]} Ke7 {[%emt 0:00:07]} 52. Qf6+ {[%emt 0:00:03]} Kd6 {[%emt 0:00:09]} 53. exf7+ {[%emt 0:00:05]} Kd7 {[%emt 0:00:24]} 54. f8=Q {[%emt 0:00:40][%csl Gf8][%cal Rf6d6]} Qc4+ {[%emt 0:00:13]} 55. Kb2 {[%emt 0:00:11] Weighted Error Value: White=0.52/Black=0.74} 1-0

[Event "87th Spanish Championship 2022"]
[Site "Linares"]
[Date "2022.08.15"]
[Round "6.10"]
[White "Moreno Ruiz, Javier"]
[Black "Macias Pino, Diego"]
[Result "1-0"]
[ECO "A20"]
[WhiteElo "2428"]
[BlackElo "2355"]
[Annotator "TA"]
[PlyCount "79"]
[EventDate "2022.08.11"]
[EventType "swiss"]
[EventCountry "ESP"]
[SourceTitle "playchess.com"]
[Source "ChessBase"]
[SourceQuality "1"]
[TimeControl "5400+30"]

{[%evp 13,79,13,17,23,16,15,14,8,17,2,13,2,0,-21,-17,-15,16,24,19,19,18,8,13,7,37,38,37,31,30,30,46,37,148,153,152,143,126,150,143,134,87,100,85,34,43,32,35,33,34,34,207,216,212,201,239,164,688,708,796,786,842,930,900,812,818,801,702,690]} 1. c4 {[%emt 0:01:44]} e5 {[%emt 0:00:05]} 2. g3 {[%emt 0:00:23]} Nf6 {[%emt 0:01:33]} 3. Bg2 {[%emt 0:00:08]} c6 {[%emt 0:00:05]} 4. d4 {[%emt 0:00:27]} Bb4+ {[%emt 0:03:41]} 5. Bd2 {[%emt 0:00:37]} Bxd2+ {[%emt 0:00:05]} 6. Qxd2 {[%emt 0:00:06]} d6 {[%emt 0:00:19]} 7. Nc3 {[%emt 0:00:36]} O-O {[%emt 0:03:13]} 8. e3 {[%emt 0:00:39] A20: English Opening: 1...e5.} Re8 {[%emt 0:02:27]} 9. Nge2 {[%emt 0:00:47]} e4 {[%emt 0:02:38]} 10. h3 {[%emt 0:08:53] The position is equal.} d5 {[%emt 0:05:12]} 11. cxd5 {[%emt 0:03:33]} cxd5 {[%emt 0:00:37]} 12. g4 {[%emt 0:00:51] [#]} Nc6 $146 {[%emt 0:02:13][%cal Bb8c6,Bc6e7,Be7g6,Bg6h4][%mdl 32]} ({Predecessor:} 12... h6 13. O-O Nc6 14. Rae1 h5 15. g5 Nh7 16. h4 f6 17. g6 Nf8 18. Nf4 Ne7 {1-0 (34) Kurtz,E (2023)-Baim,E (1655) Dulles 2022}) 13. Ng3 {[%emt 0:00:23]} h6 {[%emt 0:07:37]} 14. O-O {[%emt 0:02:40]} Be6 {[%emt 0:02:04]} 15. f3 {[%emt 0:01:35]} exf3 {[%emt 0:01:43]} 16. Rxf3 {[%emt 0:00:36]} Nh7 {[%emt 0:00:41]} 17. Raf1 {[%emt 0:11:47]} Ne7 {[%emt 0:00:30]} 18. R3f2 {[%emt 0:11:43]} Ng6 {[%emt 0:08:05]} 19. e4 {[%emt 0:12:49]} dxe4 {[%emt 0:00:10]} 20. Ngxe4 {[%emt 0:00:34]} ({Of course not} 20. d5 e3 21. Qxe3 Bxd5 $1 $17) 20... Bc4 {[%emt 0:11:53]} 21. Rd1 {[%emt 0:00:17]} Nh4 {[%emt 0:01:15]} 22. Bh1 {[%emt 0:02:57]} Qc7 {[%emt 0:07:27]} (22... Ng6 $14) 23. d5 $1 $16 {[%emt 0:01:51][%cal Bd4d5,Bd5d6][%mdl 32]} Qe5 {[%emt 0:02:28]} (23... Ng5 $2 24. d6 Qa5 25. Nxg5 hxg5 26. d7 (26. Bxb7 Rad8 $18)) 24. Qd4 $1 {[%emt 0:00:51]} Qxd4 {[%emt 0:01:21]} 25. Rxd4 {[%emt 0:00:08]} Ba6 {[%emt 0:00:01]} 26. d6 {[%emt 0:06:24] Hoping for d7.} Rad8 {[%emt 0:01:44]} 27. Nd5 {[%emt 0:07:36] Threatens to win with Ne7+.} ({Much worse is} 27. d7 Re7 $11) 27... Re5 {[%emt 0:01:29]} 28. b4 {[%emt 0:06:20] White is much more active.} ({White should try} 28. Ne7+ $16 Kf8 29. Kh2) 28... Bb5 $14 {[%emt 0:04:17]} 29. Nec3 $36 {[%emt 0:05:28][%mdl 2048] White fights for an advantage.} Be8 {[%emt 0:01:09]} 30. Re4 {[%emt 0:03:55]} Rxe4 {[%emt 0:02:34]} 31. Nxe4 {[%emt 0:00:02]} Kf8 $2 {[%emt 0:00:59] [#] This costs Black the game.} (31... Ng6 $14) 32. Nc7 $1 $18 {[%emt 0:00:36] And now Ne6+ would win.} Bd7 {[%emt 0:01:07] [#] Prevents Ne6+.} 33. Nc5 $1 {[%emt 0:01:57]} Ng5 {[%emt 0:00:02] Prevents N5e6+.} 34. Re2 {[%emt 0:01:10]} Ne6 $2 {[%emt 0:02:50]} (34... Nxh3+ 35. Kh2 Bxg4) 35. Nxb7 {[%emt 0:02:47] White is clearly winning.} ({Less strong is} 35. N5xe6+ fxe6 36. Nxe6+ Bxe6 $18) 35... Rc8 {[%emt 0:00:44]} 36. Nc5 {[%emt 0:00:22]} Rd8 {[%emt 0:00:01]} 37. Rxe6 {[%emt 0:02:15]} fxe6 {[%emt 0:00:32]} 38. N7xe6+ {[%emt 0:00:16] Pair of Knights!} Ke8 {[%emt 0:00:23]} 39. Nxd8 {[%emt 0:00:19]} Kxd8 {[%emt 0:00:06]} 40. Be4 {[%emt 0:00:42] Weighted Error Value: White=0.07 (flawless) /Black=0.38} 1-0